Workbook

Sheet Sheet1 (2)
A1: 鲤城区2023年学生资助情况表
A3: 制表单位 ： | B3: 鲤城区教育局 | G3: 2023-12-08
A4: 学段 | B4: 项目 | C4: 春 | E4: 秋 | G4: 合计
C5: 人次 | D5: 金额 | E5: 人次 | F5: 金额 | G5: 人次 | H5: 金额
A6: 学前教育 | B6: 一档 | C6: 203 | D6: =C6*1000 -> 203000.00 | E6: 198 | F6: =E6*1000 -> 198000.00 | G6: =C6+E6 -> 401 | H6: =D6+F6 -> 401000.00
B7: 二档 | C7: 52 | D7: =C7*500 -> 26000.00 | E7: 19 | F7: =E7*500 -> 9500.00 | G7: 71 | H7: =D7+F7 -> 35500.00
B8: 保教费补助合计 | C8: =SUM(C6:C7) -> 255 | D8: =SUM(D6:D7) -> 229000.00 | E8: 217 | F8: 207500.00 | G8: =C8+E8 -> 472 | H8: =D8+F8 -> 436500.00
A9: 义务教育 | B9: 初中 | C9: 311 | D9: =C9*312.5 -> 97187.50 | E9: 314 | F9: =E9*312.5 -> 98125.00 | G9: =C9+E9 -> 625 | H9: =D9+F9 -> 195312.50
B10: 小学 | C10: 781 | D10: 195500.00 | E10: 753 | F10: 188500.00 | G10: 1534 | H10: =D10+F10 -> 384000.00
B11: 生活补助合计 | C11: =C9+C10 -> 1092 | D11: =D9+D10 -> 292687.50 | E11: =E9+E10 -> 1067 | F11: =F9+F10 -> 286625.00 | G11: =C11+E11 -> 2159 | H11: =D11+F11 -> 579312.50
A12: 高中教育 | B12: 一档 | C12: 47 | D12: =C12*1500 -> 70500.00 | E12: 39 | F12: =E12*1500 -> 58500.00 | G12: 86 | H12: 129000.00
B13: 二档 | C13: 33 | D13: =C13*850 -> 28050.00 | E13: 25 | F13: =E13*850 -> 21250.00 | G13: 58 | H13: 49300.00
B14: 助学金合计 | C14: =SUM(C12:C13) -> 80 | D14: =SUM(D12:D13) -> 98550.00 | E14: 64 | F14: 79750.00 | G14: 144 | H14: 178300.00
B15: 免学费 | C15: 47 | D15: =C15*800 -> 37600.00 | E15: 39 | F15: =E15*800 -> 31200.00 | G15: 86 | H15: 68800.00
A16: 中职教育 | B16: 助学金 | C16: 37 | D16: =C16*1000 -> 37000.00 | E16: 43 | F16: =E16*1000 -> 43000.00 | G16: 80 | H16: 80000.00
B17: 免学费 | C17: 1324 | D17: =C17*1050 -> 1390200.00 | E17: 1505 | F17: =E17*1050 -> 1580250.00 | G17: 2829 | H17: =D17+F17 -> 2970450.00
A18: 特殊教育 | B18: 寄午 | C18: 595 | D18: =C18*200 -> 119000.00 | E18: 565 | F18: =E18*200 -> 113000.00 | G18: 1160 | H18: 232000.00
A19: 义务教育 | B19: 免费教科书 | C19: 册 | D19: 金额 | E19: 册 | F19: 金额 | G19: 册 | H19: 金额
C20: 579989 | D20: 3786865.30 | E20: 682228 | F20: 4576096.73 | G20: =C20+E20 -> 1262217 | H20: =D20+F20 -> 8362962.03
A21: 合计 | C21: =C8+C11+C14+C15+C16+C17+C18 -> 3430 | D21: =D8+D11+D14+D15+D16+D17+D18 -> 2204037.50 | E21: 3500 | F21: 2341325.00 | G21: 6930 | H21: 4545362.5

Sheet Sheet2

Sheet Sheet3
